[Event "DVM U20 2019"]
[Site "Braunschweig"]
[Date "2019.12.28"]
[Round "3"]
[White "Spaeth, Rene"]
[Black "Wagner, Benjamin"]
[Result "1/2-1/2"]
[ECO "C54"]
[WhiteElo "1584"]
[BlackElo "1994"]
[Annotator "NA"]
[PlyCount "95"]
[EventDate "2019.12.27"]
[EventType "team-tourn"]
[EventRounds "7"]
[EventCountry "GER"]
[SourceTitle "playchess.com"]
[Source "ChessBase"]
[SourceQuality "1"]
[WhiteTeam "SF HN-Biberach"]
[BlackTeam "SG Aufbau Elbe Magdeburg"]
[TimeControl "40/5400+30:1800+30"]

1. e4 {[%emt 0:00:00]} e5 {[%emt 0:00:00]} 2. Nf3 {[%emt 0:00:00]} Nc6 {[%emt 0:00:00]} 3. Bc4 {[%emt 0:00:00]} Bc5 {[%emt 0:00:00]} 4. c3 {[%emt 0:00:00]} Nf6 {[%emt 0:00:00]} 5. d4 {[%emt 0:00:00]} exd4 {[%emt 0:00:00]} 6. cxd4 {[%emt 0:00:00]} Bb4+ {[%emt 0:00:00]} 7. Bd2 {[%emt 0:00:00]} Bxd2+ {[%emt 0:00:00]} 8. Nbxd2 {[%emt 0:00:05]} d5 {[%emt 0:00:06]} 9. exd5 {[%emt 0:00:08]} Nxd5 {[%emt 0:00:03]} 10. Qb3 {[%emt 0:01:32]} Na5 {[%emt 0:00:15]} 11. Qa4+ {[%emt 0:00:24]} Nc6 {[%emt 0:00:04]} 12. Qb3 {[%emt 0:00:17]} Nce7 {[%emt 0:00:05]} 13. O-O {[%emt 0:01:02]} O-O {[%emt 0:00:12] unterminated} 14. Rfe1 {[%emt 0:01:26] unterminated} c6 {[%emt 0:00:44] unterminated} 15. Ne4 {[%emt 0:03:01] unterminated} Qb6 {[%emt 0:05:47] unterminated} 16. Qxb6 {[%emt 0:04:32] unterminated} Nxb6 {[%emt 0:02:36] unterminated} 17. Bb3 {[%emt 0:02:15] unterminated} Nbd5 {[%emt 0:10:53] unterminated} 18. h3 {[%emt 0:04:13] unterminated} Rd8 {[%emt 0:03:43] unterminated} 19. Rad1 {[%emt 0:02:48] unterminated} Kf8 {[%emt 0:04:55] unterminated} 20. a3 {[%emt 0:10:40] unterminated} h6 {[%emt 0:02:21] unterminated} 21. Kh2 {[%emt 0:04:26] unterminated} Nf4 {[%emt 0:03:47] unterminated} 22. Nc3 {[%emt 0:03:06] unterminated} Be6 {[%emt 0:06:02] unterminated} 23. Bxe6 {[%emt 0:04:40]} Nxe6 {[%emt 0:00:14]} 24. Rd2 {[%emt 0:00:47] unterminated} Nd5 {[%emt 0:04:11] unterminated} 25. Na4 {[%emt 0:11:55] unterminated} Re8 {[%emt 0:19:12] unterminated} 26. g3 {[%emt 0:07:17] unterminated} Rad8 {[%emt 0:04:52] unterminated} 27. Red1 {[%emt 0:06:53] unterminated} Rd6 {[%emt 0:02:53] unterminated} 28. Nc5 {[%emt 0:01:47] unterminated} Re7 {[%emt 0:05:40] unterminated} 29. Ne4 {[%emt 0:05:49] unterminated} Rd8 {[%emt 0:02:42]} 30. Re1 {[%emt 0:00:45] unterminated} f5 {[%emt 0:03:28] unterminated} 31. Nc5 {[%emt 0:02:19] unterminated} Nxc5 {[%emt 0:02:49]} 32. Rxe7 {[%emt 0:00:24] unterminated} Nxe7 {[%emt 0:04:44]} 33. dxc5 {[%emt 0:00:22] unterminated} Rxd2 {[%emt 0:01:19]} 34. Nxd2 {[%emt 0:00:07]} Kf7 {[%emt 0:00:19] unterminated} 35. Kg2 {[%emt 0:00:24]} Ke6 {[%emt 0:00:34] unterminated} 36. Kf3 {[%emt 0:02:03]} Kd5 {[%emt 0:00:30]} 37. b4 {[%emt 0:00:05] unterminated} a5 {[%emt 0:05:06] unterminated} 38. Ke3 {[%emt 0:01:39] unterminated} a4 {[%emt 0:02:23]} 39. Kd3 {[%emt 0:00:57] unterminated} f4 {[%emt 0:02:49]} 40. g4 {[%emt 0:00:58] unterminated} Ng6 {[%emt 0:03:19] unterminated} 41. Nc4 {[%emt 0:32:05] unterminated} f3 {[%emt 0:16:16] unterminated} (41... Ne5+ $11 {keeps the balance.} 42. Nxe5 Kxe5) 42. Nb6+ {[%emt 0:00:00]} Ke5 {[%emt 0:00:09]} 43. Ke3 {[%emt 0:00:00] unterminated} Nh4 {[%emt 0:00:48]} 44. Nxa4 {[%emt 0:00:00] unterminated} Ng2+ {[%emt 0:00:20]} 45. Kxf3 {[%emt 0:00:00]} Ne1+ {[%emt 0:00:07] unterminated} 46. Ke2 {[%emt 0:00:00]} Nc2 {[%emt 0:00:05] [#] unterminated} 47. Nb2 {[%emt 0:00:00] unterminated} (47. Kd3 $1 $18 {[%cal Rd3c2]} Nxa3 48. Nb6) 47... Kd4 {[%emt 0:05:47] [#] unterminated} 48. Kd2 $11 {[%emt 0:00:00] normal} ({White should play} 48. Nd1 $1 $16) 1/2-1/2

[Event "DVM U20 2019"]
[Site "Braunschweig"]
[Date "2019.12.28"]
[Round "3"]
[White "Kokschenev, Michael"]
[Black "Honisch, Alexander"]
[Result "1/2-1/2"]
[ECO "C26"]
[WhiteElo "1552"]
[BlackElo "1477"]
[Annotator "NA RC"]
[PlyCount "79"]
[EventDate "2019.12.27"]
[EventType "team-tourn"]
[EventRounds "7"]
[EventCountry "GER"]
[SourceTitle "playchess.com"]
[Source "ChessBase"]
[SourceQuality "1"]
[WhiteTeam "Karlsruher SF"]
[BlackTeam "SK Bebenhausen"]
[TimeControl "40/5400+30:1800+30"]

1. e4 {[%emt 0:00:00]} e5 {[%emt 0:00:00]} 2. Nc3 {[%emt 0:00:10]} Nf6 {[%emt 0:00:06]} 3. g3 {[%emt 0:01:08]} Nc6 {[%emt 0:02:12]} 4. Bg2 {[%emt 0:00:18]} Bc5 {[%emt 0:04:34]} 5. Nf3 {[%emt 0:00:55]} d6 {[%emt 0:01:31]} 6. h3 {[%emt 0:02:40]} h6 {[%emt 0:03:29]} 7. O-O {[%emt 0:01:50]} Be6 {[%emt 0:01:46]} 8. d3 {[%emt 0:07:08]} Qd7 {[%emt 0:02:21]} 9. Kh2 {[%emt 0:01:00]} O-O-O {[%emt 0:13:01]} 10. Be3 {[%emt 0:06:48]} Bxe3 {[%emt 0:02:28]} 11. fxe3 {[%emt 0:00:11]} d5 {[%emt 0:03:03]} 12. exd5 {[%emt 0:14:26]} Nxd5 {[%emt 0:04:59]} 13. Nxd5 {[%emt 0:02:07]} Bxd5 {[%emt 0:00:22]} 14. e4 {[%emt 0:02:52]} Be6 15. Qd2 {[%emt 0:07:18]} g5 {[%emt 0:04:43]} 16. Ng1 {[%emt 0:05:11]} Ne7 {[%emt 0:03:09]} 17. a4 {[%emt 0:04:29]} f5 {[%emt 0:08:00]} 18. exf5 {[%emt 0:06:06]} Nxf5 {[%emt 0:02:18]} 19. g4 {[%emt 0:02:06]} Nh4 {[%emt 0:01:17]} 20. Be4 {[%emt 0:00:07]} Bd5 {[%emt 0:01:08]} 21. Bf5 {[%emt 0:03:51]} Nxf5 {[%emt 0:02:25]} 22. Rxf5 {[%emt 0:00:04]} Qd6 {[%emt 0:01:00]} 23. Ne2 {[%emt 0:03:13]} e4+ {[%emt 0:03:04]} 24. Kg1 {[%emt 0:01:07]} Be6 {[%emt 0:01:07]} 25. Rf6 {[%emt 0:01:57]} Rdf8 {[%emt 0:01:00]} 26. Raf1 {[%emt 0:00:44]} Rxf6 {[%emt 0:00:34]} 27. Rxf6 {[%emt 0:00:04]} exd3 {[%emt 0:02:01]} 28. Qxd3 {[%emt 0:02:53]} Qe5 {[%emt 0:02:11]} 29. Qc3 {[%emt 0:01:09]} Qxe2 {[%emt 0:12:47]} 30. Rxe6 {[%emt 0:00:16]} Qxe6 {[%emt 0:02:12]} 31. Qxh8+ {[%emt 0:00:07]} Kd7 {[%emt 0:00:19]} 32. Qd4+ {[%emt 0:03:17]} Kc6 {[%emt 0:00:51]} 33. Kf2 {[%emt 0:02:10]} Qf7+ {[%emt 0:02:51]} 34. Kg3 {[%emt 0:03:05]} b6 {[%emt 0:03:43]} 35. Qe4+ {[%emt 0:01:19]} Kd6 {[%emt 0:00:38]} 36. Qd4+ {[%emt 0:00:34]} Kc6 {[%emt 0:01:27]} 37. Qe4+ {[%emt 0:00:14]} Kd6 {[%emt 0:00:20]} 38. Qd4+ {[%emt 0:00:07] normal} Kc6 {[%emt 0:02:25]} 39. Qe4+ {[%emt 0:00:15] normal} Kd6 {[%emt 0:00:39]} 40. Qd4+ {normal Ke5} 1/2-1/2

[Event "DVM U20 2019"]
[Site "Braunschweig"]
[Date "2019.12.28"]
[Round "3"]
[White "van Haaren, Laurens Jan"]
[Black "Peukert, Marc"]
[Result "0-1"]
[ECO "A48"]
[WhiteElo "1482"]
[BlackElo "1518"]
[Annotator "NA RC"]
[PlyCount "56"]
[EventDate "2019.12.27"]
[EventType "team-tourn"]
[EventRounds "7"]
[EventCountry "GER"]
[SourceTitle "playchess.com"]
[Source "ChessBase"]
[SourceQuality "1"]
[WhiteTeam "SK Turm Kleve"]
[BlackTeam "USV TU Dresden"]
[TimeControl "40/5400+30:1800+30"]

1. d4 {[%emt 0:00:00]} Nf6 {[%emt 0:00:00]} 2. Nf3 {[%emt 0:00:00]} g6 {[%emt 0:00:00]} 3. c4 {[%emt 0:01:08]} Bg7 {[%emt 0:00:05]} 4. g3 {[%emt 0:00:24]} O-O {[%emt 0:00:14]} 5. Bg2 {[%emt 0:00:08]} d6 {[%emt 0:00:24]} 6. O-O {[%emt 0:02:46]} Nbd7 {[%emt 0:00:46]} 7. b3 {[%emt 0:02:35]} c5 {[%emt 0:01:31]} 8. Bb2 {[%emt 0:02:12]} Rb8 {[%emt 0:01:54]} 9. Nc3 {[%emt 0:03:16]} a6 {[%emt 0:03:46]} 10. a4 {[%emt 0:01:20]} Qc7 {[%emt 0:18:07]} 11. d5 {[%emt 0:06:48]} Ne4 {[%emt 0:10:49]} 12. Qc2 {[%emt 0:05:18]} Nxc3 {[%emt 0:00:35]} 13. Bxc3 {[%emt 0:01:07]} Nf6 {[%emt 0:04:34]} 14. Nd2 {[%emt 0:04:23]} b5 {[%emt 0:01:51]} 15. axb5 {[%emt 0:13:22]} axb5 {[%emt 0:00:47]} 16. Rfb1 {[%emt 0:01:17]} Bd7 {[%emt 0:03:31]} 17. e4 {[%emt 0:05:23]} Rfc8 {[%emt 0:05:31]} 18. f4 {[%emt 0:05:42]} Ne8 {[%emt 0:04:28]} 19. Bxg7 {[%emt 0:03:02]} Nxg7 {[%emt 0:00:07]} 20. Nf3 {[%emt 0:02:02]} Re8 {[%emt 0:02:54]} 21. Re1 {[%emt 0:04:31]} bxc4 {[%emt 0:02:23]} 22. bxc4 {[%emt 0:00:11]} Rb4 {[%emt 0:00:45]} 23. e5 {[%emt 0:07:26]} Reb8 {[%emt 0:03:50]} 24. exd6 {[%emt 0:02:46]} exd6 {[%emt 0:07:44]} 25. Bf1 {[%emt 0:02:14]} Bg4 {[%emt 0:03:31]} 26. Re3 {[%emt 0:08:01]} Nf5 {[%emt 0:02:43]} 27. Qe4 {[%emt 0:07:33]} Nxe3 28. Qxe3 {[%emt 0:00:08]} Rb3 {[%emt 0:04:23] normal} 0-1

[Event "DVM U20 2019"]
[Site "Braunschweig"]
[Date "2019.12.28"]
[Round "3"]
[White "Meier, Julian"]
[Black "Habersetzer, Elyse"]
[Result "1/2-1/2"]
[ECO "E20"]
[WhiteElo "1323"]
[BlackElo "1650"]
[Annotator "NA RC"]
[PlyCount "51"]
[EventDate "2019.12.27"]
[EventType "team-tourn"]
[EventRounds "7"]
[EventCountry "GER"]
[SourceTitle "playchess.com"]
[Source "ChessBase"]
[SourceQuality "1"]
[WhiteTeam "USV TU Dresden"]
[BlackTeam "SK Turm Kleve"]
[TimeControl "40/5400+30:1800+30"]

1. d4 {[%emt 0:00:00]} e6 {[%emt 0:00:00]} 2. c4 {[%emt 0:00:00]} Nf6 {[%emt 0:00:00]} 3. Nc3 {[%emt 0:00:00]} Bb4 {[%emt 0:00:51]} 4. Bd2 {[%emt 0:01:39]} O-O {[%emt 0:03:03]} 5. e3 {[%emt 0:01:12]} c5 {[%emt 0:02:23]} 6. a3 {[%emt 0:02:28]} Bxc3 {[%emt 0:00:26]} 7. Bxc3 {[%emt 0:01:09]} Ne4 {[%emt 0:01:18]} 8. Bd3 {[%emt 0:02:53]} Nxc3 {[%emt 0:03:01]} 9. bxc3 {[%emt 0:00:06]} f5 {[%emt 0:06:12]} 10. Ne2 {[%emt 0:05:39]} b6 {[%emt 0:05:11]} 11. O-O {[%emt 0:04:11]} Bb7 {[%emt 0:01:18]} 12. f3 {[%emt 0:00:40]} Nc6 {[%emt 0:05:48]} 13. Qd2 {[%emt 0:08:53]} d6 {[%emt 0:24:00]} 14. Nf4 {[%emt 0:03:28]} Qf6 {[%emt 0:04:15]} 15. d5 {[%emt 0:17:57]} Na5 {[%emt 0:12:15]} 16. Nxe6 {[%emt 0:04:11]} Rf7 {[%emt 0:00:59]} 17. Rab1 {[%emt 0:04:03]} Ba6 {[%emt 0:02:27]} 18. e4 {[%emt 0:14:14]} Bxc4 {[%emt 0:03:59]} 19. Rfe1 {[%emt 0:01:24]} Re8 {[%emt 0:07:11]} 20. Qc2 {[%emt 0:06:11]} Bxd3 {[%emt 0:05:55]} 21. Qxd3 {[%emt 0:00:18]} fxe4 {[%emt 0:00:39]} 22. Rxe4 {[%emt 0:01:45]} Rfe7 23. Rbe1 {[%emt 0:02:20]} Nb7 {[%emt 0:02:40]} 24. Qe3 {[%emt 0:05:22]} Qf7 {[%emt 0:03:26]} 25. Qg5 {[%emt 0:03:18]} Qg6 {[%emt 0:01:44]} 26. Qxg6 {[%emt 0:02:49] normal} 1/2-1/2

[Event "DVM U20 2019"]
[Site "Braunschweig"]
[Date "2019.12.28"]
[Round "3"]
[White "Simrock, Manuel"]
[Black "Kirschweng, Luca"]
[Result "1/2-1/2"]
[ECO "C10"]
[WhiteElo "1211"]
[BlackElo "1718"]
[Annotator "NA RC"]
[PlyCount "60"]
[EventDate "2019.12.27"]
[EventType "team-tourn"]
[EventRounds "7"]
[EventCountry "GER"]
[SourceTitle "playchess.com"]
[Source "ChessBase"]
[SourceQuality "1"]
[WhiteTeam "Sges Bensheim"]
[BlackTeam "SG Trier"]
[TimeControl "40/5400+30:1800+30"]

1. e4 {[%emt 0:00:00]} e6 {[%emt 0:00:00]} 2. d4 {[%emt 0:00:00]} d5 {[%emt 0:00:00]} 3. Nd2 {[%emt 0:00:00]} dxe4 {[%emt 0:00:00]} 4. Nxe4 {[%emt 0:00:00]} Nd7 {[%emt 0:00:00]} 5. g4 {[%emt 0:00:00]} Be7 {[%emt 0:00:05]} 6. Nf3 {[%emt 0:00:33]} b6 {[%emt 0:00:23]} 7. Bg2 {[%emt 0:00:52]} Bb7 {[%emt 0:00:17]} 8. Qe2 {[%emt 0:00:12]} Ngf6 {[%emt 0:01:19]} 9. Nxf6+ {[%emt 0:00:20]} Bxf6 {[%emt 0:00:37]} 10. Rg1 {[%emt 0:05:12]} O-O {[%emt 0:03:31]} 11. g5 {[%emt 0:02:57]} Be7 {[%emt 0:01:11]} 12. h4 {[%emt 0:03:07]} c5 {[%emt 0:01:16]} 13. h5 {[%emt 0:04:04]} cxd4 {[%emt 0:02:21]} 14. g6 {[%emt 0:00:19]} fxg6 {[%emt 0:10:37]} 15. hxg6 {[%emt 0:00:50]} Bb4+ {[%emt 0:11:40]} 16. Kd1 {[%emt 0:04:03]} Qf6 {[%emt 0:04:32]} 17. gxh7+ {[%emt 0:03:24]} Kh8 {[%emt 0:01:16]} 18. Ng5 {[%emt 0:00:35]} Bxg2 {[%emt 0:02:48]} 19. Rxg2 {[%emt 0:00:04]} Nc5 {[%emt 0:12:18]} 20. a3 {[%emt 0:00:38]} d3 {[%emt 0:00:11]} 21. cxd3 {[%emt 0:00:25]} Nb3 {[%emt 0:06:18]} 22. Rb1 {[%emt 0:02:35]} Nd4 {[%emt 0:08:46]} 23. Qe4 {[%emt 0:01:51]} Bd6 {[%emt 0:08:47]} 24. Be3 {[%emt 0:02:24]} Nf5 {[%emt 0:02:49]} 25. Bf4 {[%emt 0:18:33]} e5 {[%emt 0:04:49]} 26. Bd2 {[%emt 0:00:19]} Nd4 {[%emt 0:01:19]} 27. Bc3 Rae8 {[%emt 0:02:52]} 28. Kd2 {[%emt 0:09:02]} Nb3+ {[%emt 0:01:41]} 29. Kc2 {[%emt 0:00:16]} Nc5 30. Qd5 Ra8 {normal} 1/2-1/2

[Event "DVM U20 2019"]
[Site "Braunschweig"]
[Date "2019.12.28"]
[Round "4"]
[White "Engel, Luis"]
[Black "Goldbeck, Lars"]
[Result "1-0"]
[ECO "B90"]
[WhiteElo "2531"]
[BlackElo "2312"]
[Annotator "ChessBase"]
[PlyCount "61"]
[EventDate "2019.12.27"]
[EventType "team-tourn"]
[EventRounds "7"]
[EventCountry "GER"]
[SourceTitle "playchess.com"]
[Source "ChessBase"]
[SourceQuality "1"]
[WhiteTeam "Hamburger SK"]
[BlackTeam "SC Bavaria Regensburg"]
[TimeControl "40/5400+30:1800+30"]

1. e4 {[%emt 0:00:00]} c5 {[%emt 0:00:00]} 2. Nf3 {[%emt 0:00:00]} d6 {[%emt 0:00:00]} 3. d4 {[%emt 0:00:00]} Nf6 {[%emt 0:00:00]} 4. Nc3 {[%emt 0:00:00]} cxd4 {[%emt 0:00:00]} 5. Nxd4 {[%emt 0:00:00]} a6 {[%emt 0:00:00]} 6. Be3 {[%emt 0:00:33]} e5 {[%emt 0:00:00]} 7. Nb3 {[%emt 0:00:04]} Be6 {[%emt 0:00:00]} 8. f3 {[%emt 0:00:05]} h5 {[%emt 0:00:01]} 9. Nd5 {[%emt 0:00:05]} Nxd5 {[%emt 0:02:02]} 10. exd5 {[%emt 0:00:08]} Bf5 {[%emt 0:00:05]} 11. Bd3 {[%emt 0:00:08]} Bxd3 {[%emt 0:00:24]} 12. Qxd3 {[%emt 0:00:07]} Nd7 {[%emt 0:00:32]} 13. O-O-O {[%emt 0:02:25]} g6 {[%emt 0:01:35]} 14. Kb1 {[%emt 0:03:46]} Qc7 {[%emt 0:04:53]} 15. f4 {[%emt 0:02:09]} Bh6 {[%emt 0:03:11]} 16. Rhe1 {[%emt 0:02:35]} O-O-O {[%emt 0:05:45]} 17. f5 {[%emt 0:07:15]} Bxe3 {[%emt 0:03:55]} 18. Rxe3 {[%emt 0:00:08]} Rhg8 {[%emt 0:34:53]} 19. a4 {[%emt 0:04:51]} Kb8 {[%emt 0:02:34]} 20. g3 {[%emt 0:03:00]} Nb6 {[%emt 0:06:00]} 21. fxg6 {[%emt 0:03:35]} Rxg6 {[%emt 0:02:20]} 22. Re4 {[%emt 0:05:27]} f5 {[%emt 0:01:24]} 23. Rh4 {[%emt 0:03:53]} Rc8 {[%emt 0:16:54]} 24. Qxf5 {[%emt 0:05:03]} Rg4 {[%emt 0:01:16]} 25. Rxg4 {[%emt 0:02:33]} hxg4 {[%emt 0:00:01]} 26. Rd2 {[%emt 0:07:06]} Nc4 {[%emt 0:04:26]} 27. Rf2 {[%emt 0:01:43]} b5 {[%emt 0:01:47]} 28. axb5 {[%emt 0:01:00]} a5 {[%emt 0:01:04]} 29. Qxg4 {[%emt 0:16:24]} a4 {[%emt 0:01:05]} 30. Nc1 {[%emt 0:01:33]} a3 {[%emt 0:01:40] normal} 31. Nd3 {[%emt 0:07:02] normal} 1-0

[Event "DVM U20 2019"]
[Site "Braunschweig"]
[Date "2019.12.28"]
[Round "4"]
[White "Roseneck, Jonas"]
[Black "Kueppers, Timo"]
[Result "1-0"]
[ECO "B90"]
[WhiteElo "2417"]
[BlackElo "2296"]
[Annotator "NA"]
[PlyCount "82"]
[EventDate "2019.12.27"]
[EventType "team-tourn"]
[EventRounds "7"]
[EventCountry "GER"]
[SourceTitle "playchess.com"]
[Source "ChessBase"]
[SourceQuality "1"]
[WhiteTeam "SG Aufbau Elbe Magdeburg"]
[BlackTeam "SF Essen-Katernberg"]
[TimeControl "40/5400+30:1800+30"]

1. e4 {[%emt 0:00:00]} c5 {[%emt 0:00:30]} 2. Nf3 {[%emt 0:00:00]} d6 {[%emt 0:00:04]} 3. d4 {[%emt 0:00:00]} cxd4 {[%emt 0:00:05]} 4. Nxd4 {[%emt 0:00:00]} Nf6 {[%emt 0:00:05]} 5. Nc3 {[%emt 0:00:00]} a6 {[%emt 0:00:23]} 6. Be3 {[%emt 0:00:00]} e6 {[%emt 0:00:04]} 7. f3 {[%emt 0:00:00]} b5 {[%emt 0:00:06]} 8. Qd2 {[%emt 0:00:00]} Nbd7 {[%emt 0:00:04]} 9. g4 {[%emt 0:00:00]} b4 {[%emt 0:00:03]} 10. Nce2 {[%emt 0:00:20]} h6 {[%emt 0:00:06]} 11. O-O-O {[%emt 0:00:18]} Qc7 {[%emt 0:00:04]} 12. h4 {[%emt 0:00:22]} d5 {[%emt 0:00:05]} 13. g5 {[%emt 0:00:14]} hxg5 {[%emt 0:00:09]} 14. exd5 {[%emt 0:00:04]} Nxd5 {[%emt 0:00:06]} 15. Bxg5 {[%emt 0:00:04]} N7f6 {[%emt 0:06:27]} 16. Nf4 {[%emt 0:09:20]} Be7 {[%emt 0:08:14]} 17. Bh3 {[%emt 0:32:43]} Nxf4 {[%emt 0:27:41]} 18. Bxf4 {[%emt 0:00:33]} Qb7 {[%emt 0:01:11]} 19. Rhe1 {[%emt 0:18:15]} Rxh4 {[%emt 0:23:26]} 20. Bg2 {[%emt 0:06:44]} Bd7 {[%emt 0:09:40]} 21. Nf5 {[%emt 0:07:21]} exf5 {[%emt 0:01:38]} 22. Rxe7+ {[%emt 0:00:03]} Kxe7 {[%emt 0:01:55]} 23. Qe1+ {[%emt 0:00:07]} Be6 {[%emt 0:05:46]} 24. Bd6+ {[%emt 0:00:03]} Kd7 {[%emt 0:01:19]} 25. Qxh4 {[%emt 0:00:05]} Nd5 {[%emt 0:01:24]} 26. Bxb4 {[%emt 0:00:41]} g5 {[%emt 0:00:18]} 27. Qd4 {[%emt 0:02:53]} f4 {[%emt 0:01:13]} 28. Qc5 {[%emt 0:04:59]} Qc6 {[%emt 0:01:39]} 29. c4 {[%emt 0:00:44]} Qxc5 {[%emt 0:04:31]} 30. Bxc5 {[%emt 0:00:01]} Kc6 {[%emt 0:00:12]} 31. cxd5+ {[%emt 0:00:03]} Bxd5 {[%emt 0:00:05]} 32. Be7 {[%emt 0:03:18]} Rh8 {[%emt 0:01:02]} 33. Rd2 {[%emt 0:10:58]} g4 {[%emt 0:00:52]} 34. b3 {[%emt 0:00:49]} Re8 {[%emt 0:04:20]} 35. Bh4 {[%emt 0:01:10]} Rh8 {[%emt 0:00:04]} 36. Bg5 {[%emt 0:00:44]} gxf3 {[%emt 0:00:18]} 37. Bf1 {[%emt 0:00:09]} Rh1 {[%emt 0:01:17]} 38. Rf2 {[%emt 0:00:56]} a5 {[%emt 0:00:10]} 39. Kb2 {[%emt 0:01:53]} Rg1 {[%emt 0:01:52]} 40. Bxf4 {[%emt 0:00:04]} f5 {[%emt 0:00:53] normal} 41. Be3 {[%emt 0:34:01] normal} Be4 {[%emt 0:03:46] normal} 1-0

[Event "DVM U20 2019"]
[Site "Braunschweig"]
[Date "2019.12.28"]
[Round "4"]
[White "Poghosyan, Tigran"]
[Black "Rauch, Sören"]
[Result "0-1"]
[ECO "C05"]
[WhiteElo "2302"]
[BlackElo "1901"]
[Annotator "NA"]
[PlyCount "43"]
[EventDate "2019.12.27"]
[EventType "team-tourn"]
[EventRounds "7"]
[EventCountry "GER"]
[SourceTitle "playchess.com"]
[Source "ChessBase"]
[SourceQuality "1"]
[WhiteTeam "Lübecker SV"]
[BlackTeam "SG Trier"]
[TimeControl "40/5400+30:1800+30"]

1. e4 {[%emt 0:00:00]} e6 {[%emt 0:00:00]} 2. d4 {[%emt 0:00:00]} d5 {[%emt 0:00:00]} 3. Nd2 {[%emt 0:00:00]} Nf6 {[%emt 0:00:00]} 4. e5 {[%emt 0:00:03]} Nfd7 {[%emt 0:00:00]} 5. Bd3 {[%emt 0:00:33]} c5 {[%emt 0:00:58]} 6. c3 {[%emt 0:00:07]} Nc6 {[%emt 0:00:10]} 7. Ndf3 {[%emt 0:00:27]} a6 {[%emt 0:03:54]} 8. Ne2 {[%emt 0:01:17]} b5 {[%emt 0:00:24]} 9. O-O {[%emt 0:05:49]} Be7 {[%emt 0:01:29]} 10. Ne1 {[%emt 0:01:15]} Qb6 {[%emt 0:05:22]} 11. Be3 {[%emt 0:02:00]} c4 {[%emt 0:08:22]} 12. Bc2 {[%emt 0:00:14]} b4 {[%emt 0:02:02]} 13. f4 {[%emt 0:03:00]} a5 {[%emt 0:13:10]} 14. Rf3 {[%emt 0:12:18]} g6 {[%emt 0:05:14]} 15. g4 {[%emt 0:03:39]} Bb7 {[%emt 0:02:48]} 16. f5 {[%emt 0:01:27]} gxf5 {[%emt 0:01:21]} 17. gxf5 {[%emt 0:00:01]} O-O-O {[%emt 0:00:37]} 18. Nf4 {[%emt 0:10:53]} Rdg8+ {[%emt 0:04:51]} 19. Kh1 {[%emt 0:09:05]} Nd8 {[%emt 0:00:50]} 20. f6 {[%emt 0:06:32]} Bf8 {[%emt 0:00:40]} 21. Nh5 {[%emt 0:00:30]} Nc6 {[%emt 0:03:34]} 22. Bf4 {[%emt 0:04:39] normal} 0-1

[Event "DVM U20 2019"]
[Site "Braunschweig"]
[Date "2019.12.28"]
[Round "4"]
[White "Vuckovic, Zarko"]
[Black "Lutz, Ruben"]
[Result "1-0"]
[ECO "C02"]
[WhiteElo "2258"]
[BlackElo "2132"]
[Annotator "NA"]
[PlyCount "68"]
[EventDate "2019.12.27"]
[EventType "team-tourn"]
[EventRounds "7"]
[EventCountry "GER"]
[SourceTitle "playchess.com"]
[Source "ChessBase"]
[SourceQuality "1"]
[WhiteTeam "SF Augsburg"]
[BlackTeam "USV TU Dresden"]
[TimeControl "40/5400+30:1800+30"]

1. e4 {[%emt 0:00:00]} e6 {[%emt 0:00:00]} 2. d4 {[%emt 0:00:00]} d5 {[%emt 0:00:00]} 3. e5 {[%emt 0:00:39]} c5 {[%emt 0:00:04]} 4. c3 {[%emt 0:00:03]} Nc6 {[%emt 0:00:14]} 5. Nf3 {[%emt 0:00:03]} Qb6 {[%emt 0:00:16]} 6. a3 {[%emt 0:00:05]} c4 {[%emt 0:00:27]} 7. g3 {[%emt 0:00:12]} f6 {[%emt 0:00:17]} 8. Bg2 {[%emt 0:02:06]} fxe5 {[%emt 0:00:27]} 9. Nxe5 {[%emt 0:00:07]} Nxe5 {[%emt 0:00:35]} 10. dxe5 {[%emt 0:00:02]} Bc5 {[%emt 0:01:09]} 11. O-O {[%emt 0:00:23]} Ne7 {[%emt 0:01:04]} 12. Nd2 {[%emt 0:00:41]} O-O {[%emt 0:02:14]} 13. Qe2 {[%emt 0:00:04]} Bd7 {[%emt 0:05:44]} 14. Rb1 {[%emt 0:00:36]} Ba4 {[%emt 0:13:50]} 15. h4 {[%emt 0:00:12]} Nf5 {[%emt 0:16:47]} 16. Kh2 {[%emt 0:00:30]} Nh6 {[%emt 0:01:55]} 17. Nf3 {[%emt 0:07:08]} Ng4+ {[%emt 0:09:47]} 18. Kg1 {[%emt 0:00:06]} Be8 {[%emt 0:00:13]} 19. Bf4 {[%emt 0:00:53]} Bg6 {[%emt 0:04:30]} 20. Rbd1 {[%emt 0:00:54]} Bd3 {[%emt 0:01:34]} 21. Rxd3 {[%emt 0:00:07]} cxd3 {[%emt 0:00:08]} 22. Qd2 {[%emt 0:00:16]} a5 {[%emt 0:13:41]} 23. Bh3 {[%emt 0:03:01]} Nxf2 {[%emt 0:11:37]} 24. Rxf2 {[%emt 0:00:06]} Bxf2+ {[%emt 0:00:03]} 25. Qxf2 {[%emt 0:00:02]} Qxf2+ {[%emt 0:00:07]} 26. Kxf2 {[%emt 0:00:07]} Ra6 {[%emt 0:00:16]} 27. Nd4 {[%emt 0:01:25]} Kf7 {[%emt 0:00:57]} 28. Ke3 {[%emt 0:00:49]} a4 {[%emt 0:09:53]} 29. Kxd3 {[%emt 0:00:07]} Ke7 {[%emt 0:00:45]} 30. Bf1 {[%emt 0:01:06]} Raa8 {[%emt 0:04:32]} 31. Ke3 {[%emt 0:00:15]} h6 {[%emt 0:00:53]} 32. Bd3 {[%emt 0:02:55]} Rg8 {[%emt 0:00:32]} 33. h5 {[%emt 0:01:31]} Ra5 {[%emt 0:00:40]} 34. g4 {[%emt 0:02:31]} Kf7 {[%emt 0:01:11] normal} 1-0